[Event "56th Ilmar Raud Memorial 2022"]
[Site "Viljandi"]
[Date "2022.07.06"]
[Round "5.5"]
[White "Cruz Lledo, Pablo"]
[Black "Sadekov, Maksim"]
[Result "1/2-1/2"]
[ECO "A90"]
[WhiteElo "2433"]
[BlackElo "1991"]
[Annotator "TA"]
[PlyCount "238"]
[EventDate "2022.07.05"]
[EventType "swiss"]
[EventCountry "EST"]
[SourceTitle "playchess.com"]
[Source "ChessBase"]
[SourceQuality "1"]
[TimeControl "40/5400+30:900+30"]

{[%evp 17,238,30,25,22,37,34,37,35,36,31,38,0,8,-4,56,46,81,66,74,45,73,55,88,87,84,67,85,84,85,89,90,67,65,39,50,7,0,9,23,-2,53,54,77,94,108,66,71,60,60,60,60,60,63,58,77,60,60,60,64,60,78,77,78,0,60,60,83,22,22,22,22,22,22,0,0,0,45,0,9,0,0,0,4,0,0,-25,0,0,0,0,0,0,10,0,0,0,9,0,172,0,7,4,56,0,0,0,0,0,12,0,43,4,40,9,9,16,54,46,106,114,108,0,0,0,637,612,585,554,552,0,0,8,0,-8,-8,-8,0,-168,0,0,0,0,0,-8,0,-8,-8,-8,-8,-8,-8,-8,-8,-8,9,9,9,9,9,9,14,14,14,14,16,16,16,16,16,16,16,16,16,0,16,16,16,16,16,16,16,12,16,0,20,12,12,0,20,0,0,0,0,0,0,-8,0,0,0,0,0,0,0,0,0,0,0,0,0,0,0,0,0,0,0,0,0,-8,-8,-8,-8,-8,-8]} 1. d4 {[%emt 0:01:10]} e6 {[%emt 0:00:12]} 2. Nf3 {[%emt 0:00:10]} f5 {[%emt 0:01:40]} 3. g3 {[%emt 0:00:26]} Nf6 {[%emt 0:00:08]} 4. Bg2 {[%emt 0:00:04]} d5 {[%emt 0:00:26]} 5. O-O {[%emt 0:00:09]} Bd6 {[%emt 0:00:09]} 6. Bf4 {[%emt 0:00:20]} O-O {[%emt 0:02:25]} 7. c4 {[%emt 0:02:29]} Bxf4 {[%emt 0:03:10]} 8. gxf4 {[%emt 0:00:03]} c6 {[%emt 0:00:12]} 9. Nbd2 {[%emt 0:00:59]} Ne4 {[%emt 0:02:13]} 10. Ne5 {[%emt 0:09:07] A90: Dutch Defence: Miscellaneous and Modern Stonewall (with ...Bd6).} Qb6 {[%emt 0:12:16] [#]} 11. Nb3 $146 {[%emt 0:00:19]} ({Predecessor:} 11. Nxe4 fxe4 12. Qd2 Qd8 13. f3 exf3 14. Rxf3 Nd7 15. Nxd7 Bxd7 16. b3 Qf6 17. Raf1 Be8 {1-0 (68) Bondach,A-Gavrilov,O St Petersburg 1998}) 11... Nd7 {[%emt 0:04:31]} 12. f3 {[%emt 0:04:16] White is slightly better.} Nef6 {[%emt 0:07:55]} 13. c5 {[%emt 0:07:48]} Qc7 {[%emt 0:00:36]} 14. Rc1 {[%emt 0:02:09]} Nh5 {[%emt 0:02:24]} 15. Qd2 {[%emt 0:01:17]} (15. e3 {with more complications.} g5 16. Qe1 gxf4 17. Qh4) 15... Rf6 {[%emt 0:02:36]} (15... Nxe5 $11 16. fxe5 f4) 16. e3 {[%emt 0:02:21]} Nf8 {[%emt 0:06:06]} 17. Rc2 {[%emt 0:03:38]} Rh6 {[%emt 0:02:28]} 18. Nc1 {[%emt 0:02:42]} Qe7 {[%emt 0:01:28]} 19. Ncd3 {[%emt 0:00:38]} Bd7 {[%emt 0:06:02]} 20. a4 {[%emt 0:01:44]} Be8 {[%emt 0:02:43]} 21. b4 {[%emt 0:00:38]} a6 {[%emt 0:00:47]} 22. Qf2 {[%emt 0:05:07]} Kh8 {[%emt 0:11:01]} 23. Rb1 {[%emt 0:00:27]} g5 {[%emt 0:00:39]} 24. fxg5 {[%emt 0:08:04]} Qxg5 {[%emt 0:00:07]} 25. Kf1 {[%emt 0:08:26]} Nf6 {[%emt 0:07:49]} 26. Bh1 {[%emt 0:00:44]} (26. f4 $5 {[%cal Rf4g5]} Qh4 27. Qxh4 Rxh4 28. h3 $14) 26... Ng6 {[%emt 0:01:49]} 27. f4 {[%emt 0:25:36]} Qh5 {[%emt 0:01:39]} 28. Bf3 {[%emt 0:00:44] Active counter play!} Qh3+ {[%emt 0:01:33]} (28... Ng4 $1 $11 29. Bxg4 fxg4) 29. Qg2 $14 {[%emt 0:05:36]} Ne4 {[%emt 0:11:58]} 30. Qxh3 {[%emt 0:03:28]} Rxh3 {[%emt 0:00:05]} 31. Kg2 {[%emt 0:00:48]} Rh6 {[%emt 0:00:04]} 32. Nxg6+ {[%emt 0:00:41]} (32. h3 {feels hotter.} Nh4+ 33. Kh2 Nxf3+ 34. Nxf3 Rg6 35. Nde5) 32... Rxg6+ {[%emt 0:01:21]} 33. Kf1 {[%emt 0:00:24]} Nf6 {[%emt 0:00:19]} 34. Ne5 {[%emt 0:00:38]} Rg7 {[%emt 0:00:55]} 35. Rg2 {[%emt 0:00:15]} Nd7 {[%emt 0:02:41]} 36. Nd3 {[%emt 0:00:21]} Rxg2 {[%emt 0:02:06]} 37. Kxg2 {[%emt 0:00:03]} Nf6 {[%emt 0:00:35]} 38. Kf2 {[%emt 0:00:48]} Kg7 {[%emt 0:01:08]} 39. Rg1+ {[%emt 0:00:19]} Kf8 {[%emt 0:00:15]} 40. Rb1 {[%emt 0:00:00]} (40. Ne5 $16) 40... Ke7 {[%emt 0:00:00]} (40... Kg7 $1 $11) 41. h3 {[%emt 0:01:01]} Bf7 {[%emt 0:01:12]} 42. b5 {[%emt 0:01:48]} ({Better is} 42. Ne5 $16) 42... axb5 $11 {[%emt 0:03:10]} 43. axb5 {[%emt 0:00:13]} Ra2+ {[%emt 0:00:56]} 44. Kg3 {[%emt 0:00:01] Black should prevent Nb4.} Be8 {[%emt 0:03:17]} 45. bxc6 {[%emt 0:00:28]} Bxc6 {[%emt 0:01:16]} 46. Rb3 {[%emt 0:00:41] Inhibits Ra3.} Nd7 {[%emt 0:02:17]} 47. h4 {[%emt 0:01:52]} Ra5 {[%emt 0:01:21]} 48. h5 {[%emt 0:00:19]} h6 {[%emt 0:02:15]} 49. Kf2 {[%emt 0:07:05]} Bb5 {[%emt 0:00:48]} 50. Nb4 {[%emt 0:03:36]} Bc4 {[%emt 0:01:22]} 51. Rb2 {[%emt 0:00:18] Hoping for c6.} Nf6 {[%emt 0:01:28]} 52. Rb1 {[%emt 0:02:22]} (52. c6 b5 53. c7 Kd7 $17) 52... Rb5 {[%emt 0:00:26]} 53. Ke1 {[%emt 0:00:55]} Kf7 {[%emt 0:01:20]} 54. Kd2 {[%emt 0:00:19]} Ra5 {[%emt 0:00:56]} 55. Nc2 {[%emt 0:00:37]} Ba6 {[%emt 0:00:35]} 56. Kc3 {[%emt 0:00:24]} Ra4 {[%emt 0:02:45]} 57. Rg1 {[%emt 0:02:05]} Rc4+ $2 {[%emt 0:00:27] [#]} (57... Bc4 $11) 58. Kd2 $2 {[%emt 0:00:14]} (58. Kb3 $1 $18) 58... Ra4 {[%emt 0:01:02] Prevents Na3.} 59. Rg6 {[%emt 0:01:03]} Ng8 {[%emt 0:00:40]} (59... Nd7 $11) 60. Kc3 {[%emt 0:00:48]} (60. Be2 $1 $14) 60... Bc4 {[%emt 0:00:38]} 61. Rg1 {[%emt 0:00:29]} Ra5 {[%emt 0:00:20]} 62. Rb1 {[%emt 0:00:31]} Ra7 {[%emt 0:00:28]} 63. Rb6 {[%emt 0:00:44]} Ne7 {[%emt 0:00:16]} 64. Rd6 {[%emt 0:00:35]} Ra8 {[%emt 0:00:48]} 65. Rd7 {[%emt 0:00:29]} Rb8 $1 {[%emt 0:00:10]} 66. Na3 {[%emt 0:00:22] Against Bb5} Ba6 {[%emt 0:00:30]} 67. Bd1 {[%emt 0:00:31]} Rg8 {[%emt 0:00:43]} (67... Bf1 $14) 68. Ba4 $16 {[%emt 0:01:21]} Rg3 {[%emt 0:00:12]} 69. Nb5 {[%emt 0:00:24]} (69. Nc2 $16) 69... Rxe3+ $11 {[%emt 0:00:36]} 70. Kd2 {[%emt 0:00:36]} Re4 $2 {[%emt 0:00:34][%mdl 8192]} (70... Rf3 $11) 71. Nd6+ $18 {[%emt 0:00:11]} Kf6 {[%emt 0:00:15]} 72. Nxe4+ {[%emt 0:00:19]} fxe4 {[%emt 0:00:07][%mdl 4096] Endgame KRB-KBN} 73. Rd8 $2 {[%emt 0:01:22]} ({White should play} 73. Rc7 $18) 73... Nf5 $11 {[%emt 0:00:21]} 74. Rf8+ {[%emt 0:01:10]} Kg7 {[%emt 0:00:05]} 75. Ra8 {[%emt 0:00:20] Threatens to win with c6.} e3+ $1 {[%emt 0:00:06]} 76. Ke1 $1 {[%emt 0:00:27]} Bc4 {[%emt 0:02:24]} 77. Ra7 $2 {[%emt 0:01:05] [#]} (77. Bd1 $1 $11 {and White stays safe.}) 77... Nxd4 $2 {[%emt 0:00:07]} ({Black should try} 77... Nh4 $1 $19 {[%cal Rh4f3] ( -> ...Nf3+)} 78. Rxb7+ Kf6) 78. Rxb7+ {[%emt 0:00:06] The position is equal.} Kf6 {[%emt 0:00:18]} 79. Bd1 $1 {[%emt 0:00:19] Prevents Nf3+.} Kf5 {[%emt 0:00:40] Inhibits Bg4+.} ({Don't do} 79... e2 80. Bxe2 Bxe2 81. c6 $16) 80. Rf7+ {[%emt 0:00:21]} Ke4 {[%emt 0:00:05]} 81. Rf6 {[%emt 0:00:06] And now c6 would win.} e2 {[%emt 0:00:13]} 82. Bxe2 $1 {[%emt 0:00:23]} Bxe2 {[%emt 0:00:08]} 83. Kf2 $1 {[%emt 0:00:46]} Bb5 {[%emt 0:00:16]} (83... Bxh5 {with more complications.} 84. c6 Be2 85. f5 Ke5) 84. Rxh6 {[%emt 0:00:09]} Kxf4 {[%emt 0:00:04]} 85. Rh8 {[%emt 0:00:23]} Nf5 {[%emt 0:01:15]} 86. h6 {[%emt 0:00:20]} Nxh6 $1 {[%emt 0:01:42]} 87. Rxh6 {[%emt 0:00:05] KR-KB} Ke5 {[%emt 0:00:03]} 88. Rh8 {[%emt 0:00:55]} d4 {[%emt 0:00:22]} 89. Rd8 {[%emt 0:00:06]} Bc6 {[%emt 0:00:31]} 90. Ke2 {[%emt 0:00:32]} Bb5+ {[%emt 0:00:57]} 91. Kd2 {[%emt 0:00:11]} Ke4 {[%emt 0:00:18]} 92. Rd6 {[%emt 0:00:18]} Ke5 {[%emt 0:00:51]} 93. Kc2 {[%emt 0:01:03]} Bc4 {[%emt 0:00:27]} 94. Rd8 {[%emt 0:00:43]} Bd5 {[%emt 0:00:03]} 95. Rd6 {[%emt 0:01:34]} Bf3 {[%emt 0:01:06]} 96. Kd3 {[%emt 0:00:43]} Be4+ {[%emt 0:00:03]} 97. Kc4 {[%emt 0:00:09]} Bd5+ {[%emt 0:00:04]} 98. Kb4 {[%emt 0:00:09]} ({Resist} 98. Kd3 Be4+ 99. Kc4 Bd5+ 100. Kd3 Be4+ $14) 98... Be4 {[%emt 0:01:16]} 99. Ra6 {[%emt 0:01:20]} Kd5 {[%emt 0:00:53]} 100. Rd6+ {[%emt 0:00:32]} Ke5 {[%emt 0:00:03]} 101. Rd8 {[%emt 0:00:12]} Bd5 {[%emt 0:00:36]} 102. Rd6 {[%emt 0:01:25]} Be4 {[%emt 0:00:30]} 103. Kb5 {[%emt 0:00:18]} Bd5 {[%emt 0:00:45]} 104. Ra6 {[%emt 0:00:39]} d3 {[%emt 0:00:36]} 105. c6 {[%emt 0:00:10] Black must now prevent c7.} d2 {[%emt 0:00:28]} 106. c7 {[%emt 0:01:19] aiming for Ra1.} d1=Q {[%emt 0:00:23] Inhibits Ra1.} 107. c8=Q {[%emt 0:00:03] KQR-KQB} Qb3+ {[%emt 0:00:29]} 108. Ka5 {[%emt 0:00:10]} Qa3+ {[%emt 0:00:33]} 109. Kb6 {[%emt 0:00:01]} Qb4+ {[%emt 0:00:30]} 110. Ka7 {[%emt 0:00:30] Really sharp!} Qe7+ {[%emt 0:00:28]} (110... Kf5 $5) 111. Kb8 {[%emt 0:00:16]} Qb4+ {[%emt 0:00:14]} 112. Ka7 {[%emt 0:00:57] Intending Qh8+ and mate.} Qe7+ {[%emt 0:00:05]} 113. Kb6 {[%emt 0:00:14]} Qb4+ {[%emt 0:00:07]} 114. Kc7 {[%emt 0:00:15] Threatening mate with Qh8+.} Qc5+ {[%emt 0:00:12]} 115. Kd7 {[%emt 0:00:41]} Qxc8+ {[%emt 0:00:28]} 116. Kxc8 {[%emt 0:00:07]} Kd4 {[%emt 0:00:13]} 117. Ra4+ {[%emt 0:02:00]} Bc4 {[%emt 0:00:05]} 118. Ra5 {[%emt 0:00:18]} e5 {[%emt 0:00:05]} 119. Rxe5 {[%emt 0:00:04]} Kxe5 {[%emt 0:00:03] Weighted Error Value: White=0.19 (very precise) /Black=0.18 (very precise)} 1/2-1/2

[Event "56th Ilmar Raud Memorial 2022"]
[Site "Viljandi"]
[Date "2022.07.06"]
[Round "5.6"]
[White "Kiik, Kalle"]
[Black "Shvyrjov, Igor"]
[Result "1-0"]
[ECO "B01"]
[WhiteElo "2365"]
[BlackElo "2377"]
[Annotator "TA"]
[PlyCount "89"]
[EventDate "2022.07.05"]
[EventType "swiss"]
[EventCountry "EST"]
[SourceTitle "playchess.com"]
[Source "ChessBase"]
[SourceQuality "1"]
[TimeControl "40/5400+30:900+30"]

{[%evp 11,89,28,50,34,65,55,71,46,51,47,60,59,60,46,61,56,77,77,72,68,78,71,75,78,101,83,83,67,98,75,72,57,91,91,114,59,75,59,77,75,83,72,73,70,79,28,32,13,8,10,11,0,10,22,150,148,181,181,181,178,181,180,183,185,229,184,230,181,212,162,160,48,28,4,0,-12,-12,-9,843,803]} 1. e4 {[%emt 0:00:04]} d5 {[%emt 0:00:40]} 2. exd5 {[%emt 0:00:19]} Qxd5 {[%emt 0:00:25]} 3. Nc3 {[%emt 0:00:14]} Qd6 {[%emt 0:00:25]} 4. d4 {[%emt 0:00:10]} Nf6 {[%emt 0:00:38]} 5. Nf3 {[%emt 0:00:20]} a6 {[%emt 0:02:39]} 6. g3 {[%emt 0:02:17]} Bg4 {[%emt 0:00:17]} 7. Bg2 {[%emt 0:01:32] B01: Scandinavian Defence.} (7. h3 $5 {[%cal Rh3g4]} Bh5 8. Be2 $14) 7... c6 {[%emt 0:01:15]} 8. O-O {[%emt 0:06:22]} e6 {[%emt 0:12:33]} 9. Qd3 {[%emt 0:06:10] [#] White is better.} Bxf3 $146 {[%emt 0:04:30]} ({Predecessor:} 9... Bf5 10. Qe2 Be7 11. Bf4 Qb4 12. Rab1 Nbd7 13. a3 Qb6 14. b4 Nd5 15. Nxd5 cxd5 {0-1 (35) Simacek,V (1868)-Sergeev,V (2410) Bayerisch Eisenstein 2018}) 10. Bxf3 {[%emt 0:00:40]} Be7 {[%emt 0:00:31]} 11. Bf4 {[%emt 0:11:30]} Qd8 {[%emt 0:00:12]} 12. Rad1 {[%emt 0:01:07]} O-O {[%emt 0:00:49]} 13. Ne2 {[%emt 0:01:02] White is much more active.} a5 {[%emt 0:06:43]} 14. c4 {[%emt 0:00:52]} a4 {[%emt 0:01:16]} 15. a3 {[%emt 0:00:41]} Qa5 {[%emt 0:09:04]} 16. Nc3 {[%emt 0:01:44]} Rd8 {[%emt 0:01:05]} 17. Rfe1 {[%emt 0:02:38]} Bd6 {[%emt 0:10:15]} 18. Bd2 {[%emt 0:07:07][%cal Oc3d5] [#] And now Nd5! would win. A strong pair of Bishops.} Qa6 {[%emt 0:01:30]} 19. Qf1 {[%emt 0:05:54]} Bf8 {[%emt 0:09:57]} 20. Be3 {[%emt 0:05:21]} Nbd7 {[%emt 0:03:09][%cal Bb8d7,Bd7c5,Bc5b3][%mdl 32]} 21. Rd2 {[%emt 0:04:09]} e5 {[%emt 0:10:05]} 22. d5 {[%emt 0:05:13]} Re8 {[%emt 0:05:44]} 23. Bg2 {[%emt 0:10:14]} (23. Qg2 $16 {[%cal Rd5c6]} cxd5 24. cxd5 (24. Nxd5 Qxc4 25. Nxf6+ Nxf6 $11) (24. Bxd5 Nxd5 25. Rxd5 Qc6 $14)) 23... Nc5 $14 {[%emt 0:04:04]} 24. Bg5 {[%emt 0:06:32]} Nb3 {[%emt 0:00:36]} 25. Rdd1 {[%emt 0:00:30]} cxd5 {[%emt 0:05:36]} 26. Bxf6 {[%emt 0:00:22]} Qxf6 {[%emt 0:00:39]} 27. Bxd5 {[%emt 0:00:53]} Qb6 {[%emt 0:03:02]} 28. Re3 {[%emt 0:05:57]} ({White should play} 28. Qh3 $16) 28... Bc5 $1 $11 {[%emt 0:01:52]} 29. Red3 {[%emt 0:05:20]} Bd4 {[%emt 0:02:10]} 30. Rf3 {[%emt 0:02:00]} Re7 {[%emt 0:00:07]} 31. Qh3 {[%emt 0:00:48]} Nc5 {[%emt 0:01:19]} (31... Bxc3 $5 32. bxc3 Nc5 $11) 32. Nb5 $36 {[%emt 0:02:42][%mdl 2048] White has good play.} Rf8 {[%emt 0:00:25]} (32... Nb3 $11) 33. Qh4 $16 {[%emt 0:01:58]} Rd7 {[%emt 0:01:32][%cal Od7d5] [#] aiming for ...Rxd5!} 34. Nxd4 {[%emt 0:00:24]} exd4 {[%emt 0:00:01]} 35. Qxd4 {[%emt 0:00:11]} Qc7 {[%emt 0:00:45]} 36. Re1 {[%emt 0:00:48]} b6 {[%emt 0:00:25]} 37. Rfe3 {[%emt 0:00:20]} h6 {[%emt 0:01:26]} 38. h4 {[%emt 0:00:43]} Qd6 {[%emt 0:00:18]} (38... Qd8 {might work better.} 39. Qd2 Kh8) 39. Re5 {[%emt 0:01:29]} Qf6 {[%emt 0:00:22]} 40. Qg4 {[%emt 0:00:00]} Nd3 {[%emt 0:00:00]} 41. Rf5 {[%emt 0:08:16]} ({Weaker is} 41. Qxd7 Qxf2+ 42. Kh1 Qxg3 $11) (41. R5e2 $16 Rxd5 42. cxd5 Nxe1 43. Rxe1) 41... Qxb2 $14 {[%emt 0:02:00]} 42. Re3 {[%emt 0:00:11]} Nxf2 {[%emt 0:04:47]} 43. Rxf2 {[%emt 0:03:10] Dancing on a razor blade.} Qc1+ {[%emt 0:00:12]} 44. Kg2 {[%emt 0:00:10]} Qxe3 $4 {[%emt 0:00:01][%mdl 8192]} (44... Rxd5 $11 45. cxd5 Qxe3 46. Qxa4 Qd3) 45. Qxd7 {[%emt 0:00:38] Weighted Error Value: White=0.17 (very precise) /Black=0.17 (very precise)} 1-0

[Event "56th Ilmar Raud Memorial 2022"]
[Site "Viljandi"]
[Date "2022.07.07"]
[Round "6.1"]
[White "Laurusas, Tomas"]
[Black "Kulaots, Kaido"]
[Result "1/2-1/2"]
[ECO "D85"]
[WhiteElo "2561"]
[BlackElo "2543"]
[Annotator "TA"]
[PlyCount "27"]
[EventDate "2022.07.05"]
[EventType "swiss"]
[EventCountry "EST"]
[SourceTitle "playchess.com"]
[Source "ChessBase"]
[SourceQuality "1"]
[TimeControl "40/5400+30:900+30"]

{[%evp 15,27,7,17,13,31,0,0,0,0,0,0,0,0,0]} 1. d4 {[%emt 0:00:02]} Nf6 {[%emt 0:00:13]} 2. c4 {[%emt 0:00:05]} g6 {[%emt 0:00:10]} 3. Nc3 {[%emt 0:00:09]} d5 {[%emt 0:00:13]} 4. Nf3 {[%emt 0:00:07][%cal Bg1f3,Bf3d2,Bd2b3][%mdl 32]} Bg7 {[%emt 0:00:09]} 5. cxd5 {[%emt 0:00:04]} Nxd5 {[%emt 0:00:05]} 6. e4 {[%emt 0:00:05]} Nxc3 {[%emt 0:00:06]} 7. bxc3 {[%emt 0:00:02]} c5 {[%emt 0:00:07]} 8. Be3 {[%emt 0:00:05]} Qa5 {[%emt 0:00:32]} 9. Nd2 {[%emt 0:00:05] D85: Exchange Grünfeld: Unusual White 7th moves and lines with 7 Nf3.} O-O {[%emt 0:00:36] 9...Nd7 is the recent fashion.} 10. Nb3 {[%emt 0:00:04] [#]} Qxc3+ $1 $146 {[%emt 0:00:11][%mdl 8] The position is equal. An important novelty.} ({Predecessor:} 10... Qc7 11. Nxc5 Nd7 12. Na4 a6 13. Rc1 b5 14. Nb2 Bb7 15. f3 Qa5 16. Qb3 e5 {0-1 (64) Grischuk,A (2776)-Nepomniachtchi,I (2792) chess24.com INT 2021}) 11. Bd2 {[%emt 0:00:02]} Qb2 {[%emt 0:00:08]} 12. Bc1 {[%emt 0:00:02]} Qc3+ {[%emt 0:00:06]} 13. Bd2 {[%emt 0:00:02]} Qb2 {[%emt 0:00:05]} 14. Bc1 {[%emt 0:00:04] An even fight not without its subleties.  Weighted Error Value: White=0.09 (flawless) /Black=0.00 (flawless)} 1/2-1/2

[Event "56th Ilmar Raud Memorial 2022"]
[Site "Viljandi"]
[Date "2022.07.07"]
[Round "6.2"]
[White "Maiorov, Nikita"]
[Black "Kiik, Kalle"]
[Result "1-0"]
[ECO "A40"]
[WhiteElo "2474"]
[BlackElo "2365"]
[Annotator "TA"]
[PlyCount "83"]
[EventDate "2022.07.05"]
[EventType "swiss"]
[EventCountry "EST"]
[SourceTitle "playchess.com"]
[Source "ChessBase"]
[SourceQuality "1"]
[TimeControl "40/5400+30:900+30"]

{[%evp 9,83,21,28,20,34,22,57,43,59,17,35,20,40,32,15,23,27,25,34,27,89,88,120,120,138,127,140,122,145,137,131,108,108,94,113,100,140,156,194,182,189,185,164,166,167,121,119,130,115,128,145,158,150,149,122,104,204,207,210,205,247,255,285,260,378,311,290,306,291,289,285,277,379,247,29998,29999]} 1. d4 {[%emt 0:00:32]} e6 {[%emt 0:00:26]} 2. c4 {[%emt 0:00:08]} Bb4+ {[%emt 0:00:09]} 3. Bd2 {[%emt 0:00:22]} a5 {[%emt 0:00:13]} 4. a3 {[%emt 0:00:54]} Bxd2+ {[%emt 0:00:10]} 5. Qxd2 {[%emt 0:00:09]} Nf6 {[%emt 0:00:09]} 6. Nc3 {[%emt 0:00:22] A40: Unusual replies to 1 d4.} d6 {[%emt 0:00:48]} 7. Nf3 {[%emt 0:01:06]} Nbd7 {[%emt 0:02:55]} 8. Rd1 {[%emt 0:04:13] White is slightly better.} O-O {[%emt 0:31:18]} 9. g3 {[%emt 0:10:37] [#]} (9. e4 $5 {[%cal Re4e5]}) 9... d5 $146 {[%emt 0:04:59]} ({Predecessor:} 9... Qe7 10. Bg2 Nb6 11. Qd3 Bd7 12. O-O Na4 13. Rb1 Nxc3 14. bxc3 Rab8 15. e4 e5 {1-0 (42) Loos,R (2393)-Pranav,A (2105) Douglas 2017}) 10. Ne5 {[%emt 0:11:02]} c6 {[%emt 0:00:34]} 11. Bg2 {[%emt 0:02:21]} Nxe5 {[%emt 0:02:11]} 12. dxe5 {[%emt 0:00:02]} Nd7 {[%emt 0:00:16]} 13. f4 {[%emt 0:00:55][%cal Rc4d5]} Qb6 {[%emt 0:08:22]} 14. e3 {[%emt 0:18:37][%cal Be2e3,Be3e4][%mdl 32]} Qc5 {[%emt 0:02:13]} (14... Re8 $11 {remains equal.}) 15. cxd5 $16 {[%emt 0:02:57]} exd5 {[%emt 0:04:00]} 16. e4 {[%emt 0:04:31][%cal Re4d5]} Re8 {[%emt 0:13:35] [#]} 17. Qf2 $1 {[%emt 0:02:44][%cal Re4d5]} ({Much weaker is} 17. exd5 $6 Nxe5 18. fxe5 Rxe5+ 19. Kf1 Rf5+ 20. Ke1 Re5+ 21. Kf1 Rf5+ 22. Ke1 Re5+ 23. Kf1 $11) 17... Qxf2+ {[%emt 0:02:11]} 18. Kxf2 {[%emt 0:00:02]} dxe4 {[%emt 0:00:18]} 19. Nxe4 {[%emt 0:00:09] Hoping for Nd6.} Nf8 {[%emt 0:00:13]} 20. Nd6 {[%emt 0:01:10]} Re7 {[%emt 0:00:45]} 21. Rhe1 {[%emt 0:13:06][%cal Bh1e1,Be1e3,Be3e4,Be4c4][%mdl 32]} Be6 {[%emt 0:01:18]} 22. Re3 {[%emt 0:02:08]} a4 {[%emt 0:01:15]} 23. Rd4 {[%emt 0:00:39]} Rd7 {[%emt 0:03:40]} 24. Rb4 {[%emt 0:04:08]} Ra7 {[%emt 0:00:20]} 25. Ree4 {[%emt 0:04:00]} Bb3 {[%emt 0:05:00]} 26. Bh3 {[%emt 0:01:56]} Rc7 {[%emt 0:00:18]} 27. Rb6 {[%emt 0:06:48]} (27. Re3 $18) 27... Be6 {[%emt 0:05:06]} 28. Bxe6 {[%emt 0:01:48]} Nxe6 {[%emt 0:00:15]} 29. Rc4 {[%emt 0:01:38] Against Nc5} g6 {[%emt 0:04:03] [#]} 30. g4 $1 {[%emt 0:00:17]} Rd7 {[%emt 0:02:35]} 31. f5 {[%emt 0:02:33]} Nd8 {[%emt 0:00:22]} 32. Rbb4 {[%emt 0:03:34] White is much more active. The black rooks are badly placed.} b5 {[%emt 0:02:38]} (32... Kf8 $16) 33. Rc2 $18 {[%emt 0:00:19]} Kf8 {[%emt 0:01:00]} 34. Rd4 {[%emt 0:00:09]} Rac7 {[%emt 0:02:18]} 35. Ke3 {[%emt 0:00:59]} Re7 {[%emt 0:01:10]} 36. Ne4 {[%emt 0:00:15]} Red7 {[%emt 0:00:53]} (36... Nb7 $142 37. Kf4 c5) 37. Rcd2 {[%emt 0:00:10]} Rxd4 {[%emt 0:00:25]} 38. Rxd4 {[%emt 0:00:03]} ({Weaker is} 38. Kxd4 Nb7 $16) 38... Nb7 {[%emt 0:00:07]} 39. Kf4 {[%emt 0:00:14]} h6 {[%emt 0:00:17]} 40. h4 {[%emt 0:00:00] Against g5+} Ke7 {[%emt 0:00:00]} 41. f6+ {[%emt 0:03:36]} Ke6 $2 {[%emt 0:08:39] [#]} (41... Ke8 $18 42. h5 gxh5) 42. Nc5+ $1 {[%emt 0:02:33][%mdl 512] Weighted Error Value: White=0.10 (very precise) /Black=0.38} 1-0